lending/lending_fUSD_20251218
["ID","MTS","AMOUNT","RATE_DAILY","PERIOD"]
[399019707,1766073803099,-500.0,0.00041095,120]
[399019708,1766073803172,-500.0,0.00041095,120]
[399019709,1766073803237,-341.7,0.00041095,120]
[399019710,1766073803302,-407.78,0.00041095,120]
[399019711,1766073803366,-500.0,0.00041095,120]
[399019712,1766073803429,-500.0,0.00041095,120]
[399019713,1766073803492,-150.77,0.00041095,120]
[399019714,1766073803555,-500.0,0.00041095,120]
[399019715,1766073803618,-500.0,0.00041095,120]
[399019716,1766073803681,-525.51,0.00041095,120]
[399019717,1766073803746,-500.0,0.00041095,120]
[399019719,1766073803811,-647.07,0.00041095,120]
[399019720,1766073803874,-500.0,0.00041095,120]
[399019721,1766073803938,-500.0,0.00041095,120]
[399019722,1766073804003,-181.71,0.00041095,120]
[399019723,1766073804067,-153.008625,0.00041095,120]
[399019724,1766073804138,-153.008625,0.00041095,120]
[399019725,1766073804203,-518.9,0.00041095,60]
[399019726,1766073804267,-153.008625,0.00041095,120]
[399019727,1766073804329,-500.0,0.00041095,120]
[399019728,1766073804391,-644.24,0.00041095,120]
[399019729,1766073804456,-592.11,0.00041095,120]
[399019730,1766073804520,-500.0,0.00041095,120]
[399019731,1766073804583,-500.0,0.00041095,120]
[399019732,1766073804649,-230.09,0.00041095,120]
[399019733,1766073804722,-500.0,0.00041095,120]
[399019734,1766073804804,-2436.996634,0.00041095,120]
[399019735,1766073804878,-2436.996634,0.00041095,120]
[399019736,1766073804942,-2436.996634,0.00041095,120]
[399019737,1766073805005,-1564.717314,0.00041095,120]
[399019738,1766073805067,-1564.717314,0.00041095,120]
[399019739,1766073805129,-2436.996634,0.00041095,120]
[399019740,1766073805197,-1564.717314,0.00041095,120]
[399019741,1766073805266,-500.0,0.00041095,120]
[399019742,1766073805329,-1564.717314,0.00041095,120]
[399019743,1766073805390,-693.357264,0.00041095,120]
[399019744,1766073805450,-693.357264,0.00041095,120]
[399019745,1766073805511,-693.357264,0.00041095,120]
[399019746,1766073805572,-693.357264,0.00041095,120]
[399019747,1766073805633,-153.607415,0.00041095,120]
[399019748,1766073805693,-153.607415,0.00041095,120]
[399019749,1766073805754,-153.607415,0.00041095,120]
[399019750,1766073805814,-153.607415,0.00041095,120]
[399019751,1766073805878,-500.0,0.00041095,120]
[399019752,1766073805938,-500.0,0.00041095,120]
[399019753,1766073805997,-151.2,0.00041095,120]
[399019754,1766073806059,-516.37,0.00041095,120]
[399019755,1766073806120,-500.0,0.00041095,120]
[399019756,1766073806183,-500.0,0.00041095,120]
[399019757,1766073806246,-221.74,0.00041095,120]
[399019758,1766073806309,-500.0,0.00041095,120]
[399019759,1766073806372,-500.0,0.00041095,120]
[399019760,1766073806435,-310.46,0.00041095,120]
[399019761,1766073806501,-500.0,0.00041095,120]
[399019762,1766073806574,-500.0,0.00041095,120]
[399019763,1766073806799,-500.0,0.00041095,120]
[399019764,1766073806861,-366.89,0.00041095,120]
[399019765,1766073806917,-500.0,0.00041095,120]
[399019766,1766073806976,-275.82,0.00041095,120]
[399019767,1766073807039,-500.0,0.00041095,120]
[399019768,1766073807099,-500.0,0.00041095,120]
[399019769,1766073807158,-500.0,0.00041095,120]
[399019770,1766073807217,-500.0,0.00041095,120]
[399019771,1766073807282,-500.0,0.00041095,120]
[399019772,1766073807346,-500.0,0.00041095,120]
[399019773,1766073807411,-500.0,0.00041095,120]
[399019774,1766073807475,-296.19,0.00041095,120]
[399019775,1766073807541,-500.0,0.00041095,120]
[399019776,1766073807604,-1914.059811,0.00041095,120]
[399019777,1766073807668,-500.0,0.00041095,120]
[399019778,1766073807730,-1914.059811,0.00041095,120]
[399019779,1766073807797,-1914.059811,0.00041095,120]
[399019780,1766073807859,-1914.059811,0.00041095,120]
[399019781,1766073807918,-500.0,0.00041095,120]
[399019782,1766073807981,-511.78064093,0.00041095,120]
[399019783,1766073808046,-385.27424378,0.00041095,12]
[399019784,1766073808108,-500.0,0.00041095,120]
[399019785,1766073808170,-508.49,0.00041095,120]
[399019786,1766073808230,-500.0,0.00041095,120]
[399019787,1766073808290,-500.0,0.00041095,30]
[399019788,1766073808349,-500.0,0.00041095,120]
[399019789,1766073808407,-500.0,0.00041095,120]
[399019790,1766073808467,-500.0,0.00041095,120]
[399019791,1766073808527,-596.05,0.00041095,120]
[399019792,1766073808589,-554.63,0.00041095,120]
[399019793,1766073808655,-500.0,0.00041095,60]
[399019794,1766073808713,-490.37,0.00041095,60]
[399019795,1766073808773,-500.0,0.00041095,120]
[399019796,1766073808833,-500.0,0.00041095,120]
[399019797,1766073808895,-542.13,0.00041095,120]
[399019798,1766073808961,-530.01,0.00041095,120]
[399019799,1766073809025,-500.0,0.00041095,120]
[399019800,1766073809094,-500.0,0.00041095,120]
[399019801,1766073809159,-500.0,0.00041095,120]
[399019802,1766073809224,-500.0,0.00041095,120]
[399019803,1766073809290,-501.53,0.00041095,120]
[399019804,1766073809354,-323.29,0.00041095,120]
[399019805,1766073809416,-500.0,0.00041095,120]
[399019806,1766073809477,-500.0,0.00041095,120]
[399019807,1766073809547,-500.0,0.00041095,120]
[399019808,1766073809607,-595.79,0.00041095,120]
[399019809,1766073809666,-500.0,0.00041095,120]
[399019810,1766073809727,-500.0,0.00041095,120]
[399019811,1766073809787,-500.0,0.00041095,60]
[399019812,1766073809847,-500.0,0.00041095,60]
[399019813,1766073809914,-500.0,0.00041095,60]
[399019814,1766073809975,-500.0,0.00041095,60]
[399019815,1766073810044,-395.515405,0.00041095,120]
[399019816,1766073810108,-500.0,0.00041095,60]
[399019817,1766073810175,-500.0,0.00041095,60]
[399019818,1766073810238,-500.0,0.00041095,120]
[399019819,1766073810307,-395.515405,0.00041095,120]
[399019820,1766073810370,-500.0,0.00041095,60]
[399019821,1766073810431,-500.0,0.00041095,60]
[399019822,1766073810503,-547.68,0.00041095,60]
[399019823,1766073810573,-395.515405,0.00041095,120]
[399019824,1766073810637,-395.515405,0.00041095,120]
[399019825,1766073810699,-500.0,0.00041095,120]
[399019826,1766073810763,-628.0,0.00041095,120]
[399019827,1766073810830,-500.0,0.00041095,120]
[399019828,1766073810895,-500.0,0.00041095,120]
[399019829,1766073810957,-500.0,0.00041095,120]
[399019830,1766073811021,-500.0,0.00041095,120]
[399019831,1766073811086,-333.98,0.00041095,120]
[399019832,1766073811149,-500.0,0.00041095,120]
[399019833,1766073811213,-482.58,0.00041095,120]
[399019834,1766073811277,-500.0,0.00041095,120]
[399019835,1766073811340,-500.0,0.00041095,120]
[399019836,1766073811406,-266.86,0.00041095,120]
[399019837,1766073811472,-500.0,0.00041095,120]
[399019838,1766073811535,-500.0,0.00041095,120]
[399019839,1766073811596,-445.87,0.00041095,120]
[399019840,1766073811660,-500.0,0.00041095,120]
[399019841,1766073811719,-600.96,0.00041095,120]
[399019842,1766073811777,-500.0,0.00041095,120]
[399019843,1766073811838,-500.0,0.00041095,120]
[399019844,1766073811899,-500.0,0.00041095,120]
[399019845,1766073812510,-500.0,0.00041095,120]
[399019846,1766073812572,-247.35,0.00041095,120]
[399019847,1766073812629,-500.0,0.00041095,120]
[399019848,1766073812689,-500.0,0.00041095,120]
[399019849,1766073812752,-500.0,0.00041095,120]
[399019850,1766073812813,-500.0,0.00041095,120]
[399019851,1766073812873,-500.0,0.00041095,120]
[399019852,1766073812935,-500.0,0.00041095,120]
[399019853,1766073813003,-500.0,0.00041095,120]
[399019854,1766073813068,-348.15,0.00041095,120]
[399019855,1766073813136,-286.11,0.00041095,120]
[399019856,1766073813205,-500.0,0.00041095,120]
[399019857,1766073813277,-500.0,0.00041095,120]
[399019858,1766073813342,-500.0,0.00041095,120]
[399019859,1766073813408,-224.2,0.00041095,120]
[399019860,1766073813477,-567.35,0.00041095,120]
[399019861,1766073813539,-596.78,0.00041095,120]
[399019862,1766073813601,-500.0,0.00041095,120]
[399019863,1766073813661,-269.68,0.00041095,120]
[399019864,1766073813723,-500.0,0.00041095,120]
[399019865,1766073813785,-500.0,0.00041095,120]
[399019866,1766073813847,-321.38,0.00041095,120]
[399019867,1766073813912,-500.0,0.00041095,120]
[399019868,1766073813974,-500.0,0.00041095,120]
[399019869,1766073814038,-500.0,0.00041095,120]
[399019870,1766073814098,-274.22,0.00041095,120]
[399019871,1766073814162,-500.0,0.00041095,120]
[399019872,1766073814225,-399.69,0.00041095,120]
[399019873,1766073814290,-500.0,0.00041095,120]
[399019874,1766073814352,-500.0,0.00041095,120]
[399019875,1766073814414,-500.0,0.00041095,120]
[399019876,1766073814474,-500.0,0.00041095,120]
[399019877,1766073814539,-343.99,0.00041095,120]
[399019878,1766073814597,-500.0,0.00041095,120]
[399019879,1766073814657,-647.59238331,0.00041095,120]
[399019880,1766073814719,-500.0,0.00041095,120]
[399019881,1766073814779,-500.0,0.00041095,120]
[399019882,1766073814842,-500.0,0.00041095,120]
[399019883,1766073814904,-500.0,0.00041095,120]
[399019884,1766073814967,-619.26,0.00041095,120]
[399019885,1766073815037,-500.0,0.00041095,120]
[399019886,1766073815105,-586.35,0.00041095,120]
[399019887,1766073815172,-500.0,0.00041095,120]
[399019888,1766073815242,-500.0,0.00041095,120]
[399019889,1766073815315,-500.0,0.00041095,120]
[399019890,1766073815384,-500.0,0.00041095,120]
[399019891,1766073815452,-500.0,0.00041095,120]
[399019892,1766073815522,-500.0,0.00041095,120]
[399019893,1766073815602,-500.0,0.00041095,120]
[399019894,1766073815670,-500.0,0.00041095,120]
[399019895,1766073815737,-500.0,0.00041095,120]
[399019896,1766073815801,-500.0,0.00041095,120]
[399019897,1766073815864,-500.0,0.00041095,120]
[399019898,1766073815927,-500.0,0.00041095,120]
[399019899,1766073815992,-500.0,0.00041095,120]
[399019900,1766073816070,-500.0,0.00041095,120]
[399019901,1766073816135,-170.35,0.00041095,120]
[399019902,1766073816201,-500.0,0.00041095,120]
[399019903,1766073816266,-500.0,0.00041095,120]
[399019904,1766073816334,-247.31,0.00041095,120]
[399019905,1766073816399,-500.0,0.00041095,120]
[399019906,1766073816464,-500.0,0.00041095,120]
[399019907,1766073816529,-500.0,0.00041095,120]
[399019908,1766073816592,-443.48,0.00041095,120]
[399019909,1766073816656,-238.73022507,0.00041095,120]
[399019910,1766073816717,-500.0,0.00041095,120]
[399019911,1766073816777,-500.0,0.00041095,120]
[399019912,1766073816953,-463.83,0.00041095,120]
[399019913,1766073817017,-500.0,0.00041095,120]
[399019914,1766073817083,-420.38,0.00041095,120]
[399019915,1766073817151,-500.0,0.00041095,120]
[399019916,1766073817216,-629.31,0.00041095,120]
[399019917,1766073817281,-571.88,0.00041095,120]
[399019918,1766073817342,-500.0,0.00041095,120]
[399019919,1766073817403,-500.0,0.00041095,120]
[399019920,1766073817464,-404.57,0.00041095,120]
[399019921,1766073817526,-529.35,0.00041095,120]
[399019922,1766073817593,-500.0,0.00041095,120]
[399019923,1766073817652,-184.19,0.00041095,120]
[399019924,1766073817711,-500.0,0.00041095,120]
[399019925,1766073817774,-577.28476256,0.00041095,120]
[399019926,1766073817838,-601.51,0.00041095,120]
[399019927,1766073817901,-500.0,0.00041095,120]
[399019928,1766073817963,-500.0,0.00041095,120]
[399019929,1766073818022,-500.0,0.00041095,120]
[399019930,1766073818084,-500.0,0.00041095,120]
[399019931,1766073818151,-500.0,0.00041095,120]
[399019932,1766073818215,-500.0,0.00041095,120]
[399019933,1766073818278,-598.02,0.00041095,120]
[399019934,1766073818342,-500.0,0.00041095,10]
[399019935,1766073818402,-500.0,0.00041095,120]
[399019936,1766073818462,-500.0,0.00041095,120]
[399019937,1766073818522,-637.82,0.00041095,120]
[399019938,1766073818582,-549.09139601,0.00041095,120]
[399019939,1766073818640,-500.0,0.00041095,120]
[399019940,1766073818700,-500.0,0.00041095,120]
[399019941,1766073818764,-500.0,0.00041095,120]
[399019942,1766073818829,-500.0,0.00041095,120]
[399019943,1766073818892,-357.98,0.00041095,120]
[399019944,1766073818954,-500.0,0.00041095,120]
[399019945,1766073819023,-500.0,0.00041095,120]
[399019946,1766073819091,-500.0,0.00041095,120]
[399019947,1766073819161,-280.46,0.00041095,120]
[399019948,1766073819228,-500.0,0.00041095,120]
[399019949,1766073819294,-460.47,0.00041095,120]
[399019950,1766073819354,-500.0,0.00041095,120]
[399019951,1766073819415,-500.0,0.00041095,120]
[399019952,1766073819475,-500.0,0.00041095,120]
[399019953,1766073819536,-500.0,0.00041095,120]
[399019954,1766073819600,-500.0,0.00041095,120]
[399019955,1766073819658,-500.0,0.00041095,120]
[399019956,1766073819715,-199.82,0.00041095,120]
[399019957,1766073819772,-500.0,0.00041095,120]
[399019958,1766073819828,-500.0,0.00041095,120]
[399019959,1766073819883,-500.0,0.00041095,120]
[399019960,1766073819940,-547.01,0.00041095,120]
[399019961,1766073819998,-500.0,0.00041095,120]
[399019962,1766073820058,-500.0,0.00041095,120]
[399019963,1766073820120,-568.08531466,0.00041095,120]
[399019964,1766073820188,-637.33,0.00041095,120]
[399019965,1766073820250,-601.56,0.00041095,120]
[399019966,1766073820312,-500.0,0.00041095,120]
[399019967,1766073820371,-632.9,0.00041095,120]
[399019968,1766073820434,-500.0,0.00041095,120]
[399019969,1766073820494,-530.94,0.00041095,120]
[399019970,1766073820553,-500.0,0.00041095,120]
[399019971,1766073820607,-500.0,0.00041095,120]
[399019972,1766073820660,-500.0,0.00041095,120]
[399019973,1766073820720,-649.84,0.00041095,120]
[399019974,1766073820778,-500.0,0.00041095,120]
[399019975,1766073820834,-500.0,0.00041095,120]
[399019976,1766073820889,-606.46,0.00041095,120]
[399019977,1766073820943,-636.12,0.00041095,120]
[399019978,1766073821001,-500.0,0.00041095,120]
[399019979,1766073821061,-500.0,0.00041095,120]
[399019980,1766073821121,-500.0,0.00041095,120]
[399019981,1766073821182,-500.0,0.00041095,120]
[399019982,1766073821245,-500.0,0.00041095,120]
[399019983,1766073821307,-291.86,0.00041095,120]
[399019984,1766073821367,-420.37,0.00041095,120]
[399019985,1766073821429,-500.0,0.00041095,120]
[399019986,1766073821495,-500.0,0.00041095,120]
[399019987,1766073821559,-500.0,0.00041095,120]
[399019988,1766073821626,-500.0,0.00041095,120]
[399019989,1766073821699,-500.0,0.00041095,120]
[399019990,1766073821758,-332.77027128,0.00041095,120]
[399019991,1766073821819,-252.66,0.00041095,120]
[399019992,1766073821880,-541.53,0.00041095,120]
[399019993,1766073821942,-500.0,0.00041095,120]
[399019994,1766073822004,-500.0,0.00041095,120]
[399019995,1766073822067,-319.06,0.00041095,120]
[399019996,1766073822129,-500.0,0.00041095,120]
[399019997,1766073822189,-500.0,0.00041095,120]
[399019998,1766073822252,-600.69,0.00041095,120]
[399019999,1766073822313,-500.0,0.00041095,120]
[399020000,1766073822372,-500.0,0.00041095,120]
[399020001,1766073822431,-500.0,0.00041095,120]
[399020002,1766073822489,-184.71,0.00041095,120]
[399020003,1766073822545,-500.0,0.00041095,120]
[399020004,1766073822603,-500.0,0.00041095,120]
[399020005,1766073822661,-500.0,0.00041095,120]
[399020006,1766073822716,-522.56,0.00041095,120]
[399020007,1766073822931,-500.0,0.00041095,120]
[399020008,1766073822991,-500.0,0.00041095,120]
[399020009,1766073823054,-500.0,0.00041095,120]
[399020010,1766073823118,-467.81295156,0.00041095,120]
[399020011,1766073823181,-500.0,0.00041095,120]
[399020012,1766073823249,-500.0,0.00041095,120]
[399020013,1766073823315,-500.0,0.00041095,120]
[399020014,1766073823377,-500.0,0.00041095,120]
[399020015,1766073823440,-500.0,0.00041095,120]
[399020016,1766073823504,-563.87,0.00041095,120]
[399020017,1766073823566,-368.42,0.00041095,120]
[399020018,1766073823634,-500.0,0.00041095,120]
[399020019,1766073823696,-535.05,0.00041095,120]
[399020020,1766073823756,-500.0,0.00041095,120]
[399020021,1766073823821,-500.0,0.00041095,120]
[399020022,1766073823882,-413.33,0.00041095,120]
[399020023,1766073823946,-500.0,0.00041095,120]
[399020024,1766073824008,-500.0,0.00041095,120]
[399020025,1766073824071,-373.51,0.00041095,120]
[399020026,1766073824133,-500.0,0.00041095,120]
[399020027,1766073824193,-500.0,0.00041095,120]
[399020028,1766073824256,-500.0,0.00041095,120]
[399020029,1766073824318,-500.0,0.00041095,120]
[399020030,1766073824380,-500.0,0.00041095,120]
[399020031,1766073824443,-500.0,0.00041095,120]
[399020032,1766073824506,-500.0,0.00041095,120]
[399020033,1766073824564,-523.17,0.00041095,120]
[399020034,1766073824622,-500.0,0.00041095,120]
[399020035,1766073824679,-500.0,0.00041095,120]
[399020036,1766073824734,-500.0,0.00041095,120]
[399020037,1766073824797,-500.0,0.00041095,120]
[399020038,1766073824859,-500.0,0.00041095,120]
[399020039,1766073824921,-500.0,0.00041095,120]
[399020040,1766073824983,-500.0,0.00041095,120]
[399020041,1766073825049,-500.0,0.00041095,120]
[399020042,1766073825115,-500.0,0.00041095,120]
[399020043,1766073825179,-500.0,0.00041095,120]
[399020044,1766073825242,-580.69,0.00041095,120]
[399020045,1766073825306,-500.0,0.00041095,120]
[399020046,1766073825369,-500.0,0.00041095,120]
[399020047,1766073825432,-303.96,0.00041095,120]
[399020048,1766073825493,-500.0,0.00041095,120]
[399020049,1766073825555,-500.0,0.00041095,120]
[399020050,1766073825617,-500.0,0.00041095,120]
[399020051,1766073825680,-532.79,0.00041095,120]
[399020052,1766073825742,-643.12,0.00041095,120]
[399020053,1766073825805,-617.43,0.00041095,120]
[399020054,1766073825876,-500.0,0.00041095,120]
[399020055,1766073825939,-500.0,0.00041095,120]
[399020056,1766073826010,-215.11,0.00041095,120]
[399020057,1766073826075,-500.0,0.00041095,120]
[399020058,1766073826143,-500.0,0.00041095,14]
[399020059,1766073826208,-500.0,0.00041095,120]
[399020060,1766073826274,-500.0,0.00041095,120]
[399020061,1766073826337,-500.0,0.00041095,120]
[399020062,1766073826400,-162.39,0.00041095,120]
[399020063,1766073826464,-500.0,0.00041095,120]
[399020064,1766073826525,-500.0,0.00041095,120]
[399020065,1766073826586,-500.0,0.00041095,120]
[399020066,1766073826648,-500.0,0.00041095,120]
[399020067,1766073826711,-212.16,0.00041095,120]
[399020068,1766073826769,-401.64,0.00041095,120]
[399020069,1766073826827,-500.0,0.00041095,120]
[399020070,1766073826889,-500.0,0.00041095,120]
[399020071,1766073826954,-382.56,0.00041095,120]
[399020072,1766073827030,-500.0,0.00041095,120]
[399020073,1766073827098,-500.0,0.00041095,120]
[399020074,1766073827162,-500.0,0.00041095,120]
[399020075,1766073827228,-500.0,0.00041095,120]
[399020076,1766073827292,-460.76,0.00041095,120]
[399020077,1766073827359,-500.0,0.00041095,120]
[399020078,1766073827423,-350.92,0.00041095,120]
[399020079,1766073827486,-532.99,0.00041095,120]
[399020080,1766073827545,-500.0,0.00041095,120]
[399020081,1766073827603,-500.0,0.00041095,120]
[399020082,1766073827660,-195.24,0.00041095,120]
[399020083,1766073827718,-620.14,0.00041095,120]
[399020084,1766073827778,-500.0,0.00041095,120]
[399020085,1766073827836,-207.4,0.00041095,120]
[399020086,1766073827893,-500.0,0.00041095,120]
[399020087,1766073827954,-500.0,0.00041095,120]
[399020088,1766073828017,-516.57,0.00041095,120]
[399020089,1766073828086,-500.0,0.00041095,120]
[399020090,1766073828155,-500.0,0.00041095,120]
[399020091,1766073828578,-500.0,0.00041095,120]
[399020092,1766073828638,-252.1,0.00041095,120]
[399020093,1766073828698,-500.0,0.00041095,120]
[399020094,1766073828759,-500.0,0.00041095,120]
[399020095,1766073828818,-500.0,0.00041095,120]
[399020096,1766073828879,-500.0,0.00041095,120]
[399020097,1766073828937,-500.0,0.00041095,120]
[399020098,1766073829001,-500.0,0.00041095,120]
[399020099,1766073829062,-508.69,0.00041095,120]
[399020100,1766073829123,-500.0,0.00041095,120]
[399020101,1766073829186,-500.0,0.00041095,120]
[399020102,1766073829250,-500.0,0.00041095,120]
[399020103,1766073829318,-504.49,0.00041095,120]
[399020104,1766073829390,-500.0,0.00041095,120]
[399020105,1766073829457,-174.24,0.00041095,120]
[399020106,1766073829518,-296.38285683,0.00041095,120]
[399020107,1766073829576,-500.0,0.00041095,120]
[399020108,1766073829635,-591.77,0.00041095,120]
[399020109,1766073829691,-500.0,0.00041095,120]
[399020110,1766073829746,-568.26,0.00041095,120]
[399020111,1766073829807,-500.0,0.00041095,120]
[399020112,1766073829864,-500.0,0.00041095,120]
[399020113,1766073829923,-544.73,0.00041095,120]
[399020114,1766073829982,-500.0,0.00041095,120]
[399020115,1766073830045,-500.0,0.00041095,120]
[399020116,1766073830108,-500.0,0.00041095,120]
[399020117,1766073830176,-500.0,0.00041095,120]
[399020118,1766073830246,-447.46167099,0.00041095,120]
[399020119,1766073830315,-500.0,0.00041095,120]
[399020120,1766073830378,-156.65,0.00041095,120]
[399020121,1766073830442,-533.97,0.00041095,120]
[399020122,1766073830505,-500.0,0.00041095,120]
[399020123,1766073830570,-500.0,0.00041095,120]
[399020124,1766073830630,-500.0,0.00041095,120]
[399020125,1766073830693,-603.08,0.00041095,120]
[399020126,1766073830753,-500.0,0.00041095,120]
[399020127,1766073830814,-641.94,0.00041095,120]
[399020128,1766073830875,-500.0,0.00041095,120]
[399020129,1766073830937,-500.0,0.00041095,120]
[399020130,1766073830999,-479.09,0.00041095,120]
[399020131,1766073831068,-500.0,0.00041095,120]
[399020132,1766073831135,-500.0,0.00041095,120]
[399020133,1766073831202,-180.67,0.00041095,120]
[399020134,1766073831274,-500.0,0.00041095,120]
[399020135,1766073831345,-642.83,0.00041095,120]
[399020136,1766073831419,-642.97,0.00041095,120]
[399020137,1766073831490,-500.0,0.00041095,120]
[399020138,1766073831563,-500.0,0.00041095,120]
[399020139,1766073831633,-500.0,0.00041095,120]
[399020140,1766073831702,-503.08,0.00041095,120]
[399020141,1766073831773,-500.0,0.00041095,120]
[399020142,1766073831845,-500.0,0.00041095,120]
[399020143,1766073831928,-463.18,0.00041095,120]
[399020144,1766073832004,-500.0,0.00041095,120]
[399020145,1766073832077,-500.0,0.00041095,120]
[399020146,1766073832147,-500.0,0.00041095,120]
[399020147,1766073832216,-500.0,0.00041095,120]
[399020148,1766073832284,-500.0,0.00041095,120]
[399020149,1766073832350,-500.0,0.00041095,120]
[399020150,1766073832417,-310.3,0.00041095,120]
[399020151,1766073832483,-500.0,0.00041095,120]
[399020152,1766073832547,-500.0,0.00041095,120]
[399020153,1766073832615,-168.77,0.00041095,120]
[399020154,1766073832679,-500.0,0.00041095,120]
[399020155,1766073832745,-500.0,0.00041095,120]
[399020156,1766073832808,-625.81,0.00041095,120]
[399020157,1766073832873,-500.0,0.00041095,120]
[399020158,1766073833177,-500.0,0.00041095,120]
[399020159,1766073833250,-500.0,0.00041095,120]
[399020160,1766073833319,-213.84,0.00041095,120]
[399020161,1766073833389,-500.0,0.00041095,120]
[399020162,1766073833456,-553.8,0.00041095,120]
[399020163,1766073833525,-500.0,0.00041095,120]
[399020164,1766073833593,-500.0,0.00041095,120]
[399020165,1766073833660,-500.0,0.00041095,120]
[399020166,1766073833732,-500.0,0.00041095,120]
[399020167,1766073833796,-500.0,0.00041095,120]
[399020168,1766073833865,-500.0,0.00041095,120]
[399020169,1766073833932,-500.0,0.00041095,120]
[399020170,1766073834011,-500.0,0.00041095,120]
[399020171,1766073834084,-371.48,0.00041095,120]
[399020172,1766073834151,-560.16,0.00041095,120]
[399020173,1766073834218,-500.0,0.00041095,120]
[399020174,1766073834284,-500.0,0.00041095,60]
[399020175,1766073834351,-500.0,0.00041095,60]
[399020176,1766073834415,-575.42,0.00041095,120]
[399020177,1766073834478,-500.0,0.00041095,60]
[399020178,1766073834541,-500.0,0.00041095,60]
[399020179,1766073834606,-500.0,0.00041095,60]
[399020180,1766073834669,-500.0,0.00041095,60]
[399020181,1766073834732,-500.0,0.00041095,60]
[399020182,1766073834799,-500.0,0.00041095,60]
[399020183,1766073834864,-500.0,0.00041095,60]
[399020184,1766073834935,-500.0,0.00041095,60]
[399020185,1766073835002,-500.0,0.00041095,60]
[399020186,1766073835068,-500.0,0.00041095,120]
[399020187,1766073835137,-500.0,0.00041095,60]
[399020188,1766073835201,-500.0,0.00041095,120]
[399020189,1766073835267,-722.53464822,0.00041095,60]
[399020190,1766073835332,-722.53464822,0.00041095,60]
[399020191,1766073835395,-722.53464822,0.00041095,60]
[399020192,1766073835457,-722.53464822,0.00041095,60]
[399020193,1766073835523,-722.53464822,0.00041095,60]
[399020194,1766073835587,-722.53464822,0.00041095,60]
[399020195,1766073835652,-722.53464822,0.00041095,60]
[399020196,1766073835715,-722.53464822,0.00041095,60]
[399020197,1766073835777,-722.53464822,0.00041095,60]
[399020198,1766073835840,-722.53464822,0.00041095,60]
[399020199,1766073835912,-722.53464822,0.00041095,60]
[399020200,1766073835977,-722.53464822,0.00041095,60]
[399020201,1766073836049,-500.0,0.00041095,120]
[399020202,1766073836119,-479.72,0.00041095,120]
[399020203,1766073836184,-500.0,0.00041095,120]
[399020204,1766073836254,-190.1,0.00041095,120]
[399020205,1766073836322,-500.0,0.00041095,120]
[399020206,1766073836393,-500.0,0.00041095,120]
[399020207,1766073836458,-500.0,0.00041095,120]